Workbook

Sheet Sheet1
A1: 2025年生产部12月接收处置记录统计表 | R1: 自产废物
A2: 废物名称 | B2: 危废代码 | C2: 形态 | D2: 上月结存 | E2: 本月接收量 | F2: 处置量及工艺 | J2: 库存量 | K2: 1#库 | L2: 2#库 | M2: 干化 | N2: 罐区 | O2: 料坑 | R2: 废物名称 | S2: 上月结存 | T2: 本月产生量 | U2: 包数 | V2: 本月处理 | Y2: 库存 | Z2: 备注 | AA2: 存储位置
F3: 固废焚烧 | G3: 废液焚烧 | H3: 清洗大桶 | I3: 污泥干化 | K3: 1#库 | L3: 2#库 | M3: 干化 | N3: 罐区 | O3: 料坑 | V3: 焚烧处置 | W3: 液体炉 | X3: 拉运
A4: 蒸馏残液 | B4: 271-001-02 | C4: 液态 | D4: 31.3345 | E4: =13 -> 13 | J4: =D4+E4-F4-G4-H4-I4 -> 44.3345 | K4: 44.3345 | P4: =K4+L4+M4+N4+O4 -> 44.3345 | R4: 炉渣（回转窑） | S4: 258.44 | T4: =132.145-37.695 -> 94.45 | U4: 77 | X4: 219.79 | Y4: =S4+T4-V4-X4-W4 -> 133.1
A5: 精馏残渣 | B5: 271-001-02 | C5: 固态 | D5: 0 | E5: =6.2929+44.82 -> 51.1129 | F5: =6.2929 -> 6.2929 | J5: 44.82 | K5: 44.82 | P5: 44.82 | R5: 飞灰（回转窑） | S5: 25.933 | T5: =13.637 -> 13.637 | U5: 32 | X5: 38.5 | Y5: 1.07
A6: 废有机溶剂 | B6: 271-002-02 | C6: 液态 | D6: 9.33824 | F6: =9.33824 -> 9.33824 | J6: 0 | P6: 0 | R6: 飞灰（废液炉） | S6: 4.045 | T6: =5.165 -> 5.165 | U6: 13 | X6: 8.8 | Y6: 0.41
A7: 过滤介质 | B7: 271-003-02 | C7: 固态 | D7: 0 | E7: =2.3976+2.466 -> 4.8636 | F7: =2.3976 -> 2.3976 | J7: 2.466 | K7: 2.466 | P7: 2.466 | R7: 废油渣/泥 | S7: 0 | Y7: 0 | Z7: 精馏切水后剩下的罐底泥
A8: 过滤介质 | B8: 272-003-02 | C8: 固态 | D8: 0 | E8: =0.063 -> 0.063 | J8: 0.063 | K8: 0.063 | P8: 0.063 | R8: 含油污水 | S8: 0 | T8: 0.7 | V8: 0.7 | Y8: 0 | Z8: 蒸汽清洗过程 | AA8: 2#库
A9: 药用废炭 | B9: 271-004-02 | C9: 固态 | D9: 0.23736 | E9: =4.774 -> 4.774 | F9: =0.23736 -> 0.23736 | J9: 4.774 | K9: 4.774 | P9: 4.774 | R9: 废商标 | S9: 0 | T9: 0.32 | V9: 0.32 | Y9: 0 | Z9: 除商标 | AA9: 2#库
A10: 废盐 | B10: 271-005-02 | C10: 固态 | D10: 0 | E10: =19.16 -> 19.16 | F10: =19.16 -> 19.16 | J10: 0 | P10: 0 | R10: 废残液 | S10: 0 | T10: 0.85 | V10: 0.85 | Y10: 0 | Z10: 抽残液 | AA10: 2#库
A11: 不合格药品（含包材） | B11: 276-005-02 | C11: 固态 | D11: 0 | E11: =0.23842 -> 0.23842 | F11: =0.23842 -> 0.23842 | J11: 0 | P11: 0 | R11: 废渣 | S11: 0 | T11: 0.52 | V11: 0.52 | Y11: 0 | Z11: 清洗过程 | AA11: 2#库
A12: 实验室废液 | B12: 900-002-03 | C12: 液态 | D12: 0 | E12: =0.27+0.318985+0.3 -> 0.888985 | F12: =0.318985 -> 0.318985 | G12: =0.27 -> 0.27 | J12: 0.3 | L12: 0.3 | P12: 0.3 | R12: 漆渣 | S12: 0 | Y12: 0 | Z12: 清洗过程
A13: 一般废药品 | B13: 900-002-03 | C13: 固态 | D13: 0 | E13: =1.3823+4+0.0049 -> 5.3872 | F13: =1.3823+4+0.0049 -> 5.3872 | J13: 0 | P13: 0 | R13: 污水厂污泥 | S13: 0 | T13: 2.6 | V13: 2.6 | Y13: 0 | Z13: 水处理后产生的污泥 | AA13: 2#库
A14: 污泥 | B14: 263-011-04 | C14: 半固态 | D14: 16.28 | F14: =16.28 -> 16.28 | J14: 0 | P14: 0 | R14: 废清洗剂 | S14: 0 | Y14: 0 | Z14: 清洗剂清洗过程
A15: 废有机溶剂及废物 | B15: 900-402-06 | C15: 液态 | D15: 163.3965 | E15: =2.6+5.67+30.39+10.101+4.662 -> 53.423 | F15: =0.005+0.005+3.754+4.8395+0.002+0.004+21.03+4.9505+15+15.94+10+18.14 -> 93.67 | G15: =2+5.0995+1.501+12.76 -> 21.3605 | J15: 101.789 | L15: 101.789 | P15: 101.789
A16: 清洗剂、渗透剂包装物 | B16: 900-402-06 | C16: 固态 | D16: 0 | E16: =0.03 -> 0.03 | F16: =0.03 -> 0.03 | J16: 0 | P16: 0
A17: 废有机溶剂 | B17: 900-404-06 | C17: 液态 | D17: 78.4065 | E17: =0.8+3+0.16+10.98+2.247+2.994 -> 20.181 | F17: =2.61+10.98+0.61+1.797 -> 15.997 | G17: =32.5+6.94+22.59+11.04 -> 73.07 | J17: 9.5205 | L17: 9.5205 | P17: 9.5205
A18: 废有机废液 | B18: 900-405-06 | C18: 液态 | D18: 4.5 | E18: =3.5 -> 3.5 | J18: 8 | L18: 8 | P18: 8
A19: 废活性炭 | B19: 900-405-06 | C19: 固态 | D19: 0.03835 | E19: =0.02+0.105 -> 0.125 | F19: =0.03835+0.02 -> 0.05835 | J19: 0.105 | L19: 0.105 | P19: 0.105
A20: 废有机溶剂 | B20: 900-407-06 | C20: 液态 | D20: 205.6905 | E20: =26.1535+16.615 -> 42.7685 | F20: =25.25+7.23+10+10.248+12+31.14+20+24.53+10.026 -> 150.424 | J20: 98.035 | L20: 98.035 | P20: 98.035
A21: 危废污泥 | B21: 900-409-06 | C21: 固态 | D21: 75.62 | E21: =21.88+27.22+21.16+21.44+19.28+28.98+8.72 -> 148.68 | F21: =18.98+10+27.2+19.44+10+11.88+17+10.22 -> 124.72 | J21: 99.58 | L21: =99.58-40 -> 59.58 | O21: 40 | P21: 99.58
A22: 油污水 | B22: 251-001-08 | C22: 液态 | D22: 252.57 | F22: =30.16+23.72+15+29.12+23.75+9+11.07+20+11.22+10+10+6.66 -> 199.7 | G22: =21.57+5.6+6.99+15.51 -> 49.67 | J22: 3.2 | N22: 3.2 | P22: 3.2
A23: 废滤芯 | B23: 251-012-08 | C23: 固态 | D23: 0 | E23: =0.9 -> 0.9 | F23: =0.9 -> 0.9 | J23: 0 | P23: 0
A24: 废溶剂油 | B24: 291-001-08 | C24: 半固态 | D24: 73.26 | E24: =27.28 -> 27.28 | J24: 100.54 | K24: 100.54 | P24: 100.54
A25: 废白油 | B25: 398-001-08 | C25: 液态 | D25: 0 | E25: =0.9915 -> 0.9915 | J25: 0.9915 | L25: 0.9915 | P25: 0.9915
A26: 研磨泥 | B26: 900-200-08 | C26: 固态 | D26: 17.4845 | E26: =18.6+15.745 -> 34.345 | F26: =17.4845+18.6 -> 36.0845 | J26: 15.745 | L26: 15.745 | P26: 15.745
A27: HW08废油 | B27: 900-200-08 | C27: 液态 | D27: 30.943 | E27: =9.88 -> 9.88 | F27: =6.34 -> 6.34 | G27: =9.42 -> 9.42 | J27: 25.063 | K27: 25.063 | P27: 25.063
A28: 废煤油 | B28: 900-201-08 | C28: 液态 | D28: 8.24 | F28: =4.52 -> 4.52 | G28: =0.62 -> 0.62 | J28: 3.1 | L28: 1 | N28: 2.1 | P28: 3.1
A29: 废润滑脂 | B29: 900-209-08 | C29: 半固态 | D29: 5.318 | E29: =0.05+1.231+0.059 -> 1.34 | F29: =5.318+0.05 -> 5.368 | J29: 1.29 | K29: 1.29 | P29: 1.29
A30: 水处理浮渣及污泥 | B30: 900-210-08 | C30: 半固态 | D30: 12.416 | E30: =26.35+0.74+4.208+26.98+28.027+3.35+2 -> 91.655 | F30: =3.416+0.74+9 -> 13.156 | J30: 90.915 | K30: 2.507 | L30: 88.408 | P30: 90.915
A31: 废机油、含油废水 | B31: 900-210-08 | C31: 液态 | D31: 64.96 | F31: =6.76+4.94+6.34+3.6+2.82 -> 24.46 | J31: 40.5 | K31: 5.82 | L31: 29.78 | N31: 4.9 | P31: 40.5
A32: 废油泥 | B32: 900-210-08 | C32: 固态 | D32: 105.287 | E32: =11.669+4.858+3.96+0.08+11.3585 -> 31.9255 | F32: =6.447+11.669+0.7+4.858 -> 23.674 | J32: 113.5385 | K32: 26.42 | L32: 87.1185 | P32: 113.5385
A33: 废矿物油 | B33: 900-214-08 | C33: 液态 | D33: 86.58425 | E33: =0.01+0.43+0.1+0.0127+1.001+0.6054+0.106+1.644+0.905+3.5807+0.1995 -> 8.5943 | F33: =0.05 -> 0.05 | G33: =0.3934+0.275+2.38+0.823 -> 3.8714 | J33: 91.25715 | K33: 24.2 | N33: 67.05715 | P33: 91.25715
A34: 废矿物油 | B34: 900-217-08 | C34: 液态 | D34: 91.1979 | E34: =0.1+2+1.33+0.3+0.7121+4.2076+3.11 -> 11.7597 | G34: =5.05+2.72+14.052+0.85+1.2 -> 23.872 | J34: 79.0856 | N34: 79.0856 | P34: 79.0856
A35: 废液压油 | B35: 900-218-08 | C35: 液态 | D35: 35.883 | E35: =0.008+0.55+0.1+0.99104+3.28+5.08+0.48 -> 10.48904 | G35: =1.98+4.18 -> 6.16 | J35: 40.21204 | N35: 40.21204 | P35: 40.21204
A36: 废液压油桶 | B36: 900-218-08 | C36: 固态 | D36: 0 | E36: =0.03 -> 0.03 | F36: =0.03 -> 0.03 | J36: 0 | P36: 0
A37: 废冷冻机油 | B37: 900-219-08 | C37: 液态 | D37: 13.76 | E37: =0.793+1.06+1.7+0.68+0.05+0.4 -> 4.683 | J37: 18.443 | N37: 18.443 | P37: 18.443
A38: 废矿物油与含矿物油废物 | B38: 900-220-08 | C38: 液态 | D38: 3.4 | E38: =15.12 -> 15.12 | G38: =2.6 -> 2.6 | J38: 15.92 | N38: 15.92 | P38: 15.92
A39: 废矿物油 | B39: 900-249-08 | C39: 液态 | D39: 219.52744 | E39: =0.88+4.487+1.15+1.24+0.15+4.462+4.54+0.02+2.019+0.578+0.1+13.1311+6.76982+1.12 -> 40.64692 | F39: =6.42+1.24+6.2 -> 13.86 | G39: =0.4+9.6129+5.5525+17.1+16.86+22.42+5.66 -> 77.6054 | J39: 168.70896 | K39: 3.64 | L39: 24.2935 | N39: 140.77546 | P39: 168.70896
A40: 废矿物油、废油桶 | B40: 900-249-08 | C40: 固态 | D40: 18.803 | E40: =16.46+0.01+0.14+2.76+0.085+0.24+2.01+0.101+0.459+0.001+1.4939+0.166+2.071+0.8742 -> 26.8711 | F40: =0.305+0.03+0.015+10.133+7.802+3.451+0.02+8.795+4.59+2.76+0.02+0.26+1.805+0.101+0.314+0.02+0.3 -> 40.721 | J40: 4.9531 | K40: 4.5569 | L40: 0.3962 | P40: 4.9531
A41: 废矿物油、油泥 | B41: 900-249-08 | C41: 半固态 | D41: 7.26 | E41: =1.5+2.05 -> 3.55 | J41: 10.81 | K41: 10.81 | P41: 10.81
A42: 废水、乳化液 | B42: 900-007-09 | C42: 液态 | D42: 34.898 | E42: =0.7458+3+2.468+0.13+7.27+0.9+0.418 -> 14.9318 | F42: =2.329+2.084+3.182 -> 7.595 | G42: =2.8+2.3+0.313+0.2 -> 5.613 | J42: 36.6218 | L42: 36.6218 | P42: 36.6218
A43: 沉淀渣 | B43: 900-007-09 | C43: 半固态 | D43: 17.2765 | F43: =10.8 -> 10.8 | J43: 6.4765 | L43: 6.4765 | P43: 6.4765
A44: 沉淀渣、清罐残渣 | B44: 900-007-09 | C44: 固态 | D44: 0 | E44: =0.15 -> 0.15 | J44: 0.15 | L44: 0.15 | P44: 0.15
A45: 废乳化液 | B45: 900-005-09 | C45: 液态 | D45: 0 | E45: =0.4 -> 0.4 | J45: 0.4 | L45: 0.4 | P45: 0.4
A46: 废乳化液 | B46: 900-006-09 | C46: 液态 | D46: 102.4025 | E46: =0.981+1.44+7+12.88+0.054+13.36+0.05+8.29+2.86+8.15+0.575+19.0359 -> 74.6759 | F46: =0.05+5.08 -> 5.13 | G46: =21.8805+13+11.78+6.3325+16.5+8.3865 -> 77.8795 | J46: 94.0689 | L46: 94.0689 | P46: 94.0689
A47: 砂轮沫 | B47: 900-006-09 | C47: 固态 | D47: 0 | E47: =1.76+0.005+2.944 -> 4.709 | F47: =1.76+0.005 -> 1.765 | J47: 2.944 | L47: 2.944 | P47: 2.944
A48: 废焦油 | B48: 309-001-11 | C48: 半固态 | D48: 0 | E48: 27.8 | J48: 27.8 | K48: 27.8 | P48: 27.8
A49: 废水汽提塔排重质烃 | B49: 252-009-11 | C49: 液态 | D49: 68.22 | J49: 68.22 | L49: 68.22 | P49: 68.22
A50: 煤焦油、釜残 | B50: 900-013-11 | C50: 固态 | D50: 2.29 | J50: 2.29 | L50: 2.29 | P50: 2.29
A51: 煤焦油 | B51: 900-013-11 | C51: 液态 | D51: 84.907 | E51: =4+2.003+1.766-0.21 -> 7.559 | J51: 92.466 | K51: 53.757 | L51: 38.709 | P51: 92.466
A52: 釜残 | B52: 900-013-11 | C52: 半固态 | D52: 531.5285 | E52: =0.18+41.4118+0.21 -> 41.8018 | F52: =11.417+11 -> 22.417 | J52: 550.9133 | K52: 550.9133 | P52: 550.9133
A53: 煤焦油 | B53: 451-003-11 | C53: 液态 | D53: 1422.58 | E53: =50.14+30.44+0.11 -> 80.69 | J53: 1503.27 | K53: 0.11 | L53: 99.1 | N53: 1404.06 | P53: 1503.27
A54: 漆渣 | B54: 900-250-12 | C54: 固态 | D54: 0 | E54: =13.12+14.704 -> 27.824 | F54: =13.12 -> 13.12 | J54: 14.704 | K54: 14.704 | P54: 14.704
A55: 漆渣 | B55: 900-250-12 | C55: 半固态 | D55: 0 | E55: =0.558+0.554 -> 1.112 | F55: =0.558 -> 0.558 | J55: 0.554 | K55: 0.554 | P55: 0.554
A56: 油漆渣 | B56: 900-251-12 | C56: 固态 | D56: 0 | E56: =2 -> 2 | F56: =2 -> 2 | J56: 0 | P56: 0
A57: 废漆渣 | B57: 900-252-12 | C57: 固态 | D57: 276.773 | E57: =0.05+25.355+11.74+2.78+13.94+22.98561+12.58+8.35+24.6+1.05+31.991+0.89+41.0845+11.4 -> 208.79611 | F57: =8.905+13.6+7.005+7.01+17.54+18.005+11.185+12.013+22.37+2.78+0.255+5.7295+19.08+15.85611+11.2+11.74+9.5+9.84+6.8455 -> 210.45911 | J57: 275.11 | K57: 275.11 | P57: 275.11
A58: 漆渣 | B58: 900-252-12 | C58: 半固态 | D58: 0 | E58: =1.5 -> 1.5 | F58: =1.5 -> 1.5 | J58: 0 | P58: 0
A59: 油墨渣子、油漆 | B59: 900-299-12 | C59: 半固态 | D59: 1.674 | E59: =0.1614+0.721 -> 0.8824 | F59: =1.674 -> 1.674 | J59: 0.8824 | K59: 0.8824 | P59: 0.8824
A60: 硒鼓墨盒 | B60: 900-299-12 | C60: 固态 | D60: 0 | E60: =0.48+0.005+0.007+0.3+0.007+0.252+0.04521 -> 1.09621 | F60: =0.25+0.23+0.012 -> 0.492 | J60: 0.60421 | K60: 0.60421 | P60: 0.60421
A61: 油漆渣 | B61: 900-299-12 | C61: 液态 | D61: 0 | E61: =0.4+4 -> 4.4 | F61: =0.4 -> 0.4 | J61: 4 | K61: 4 | P61: 4
A62: 废漆渣稀释剂混合物 | B62: 264-013-12 | C62: 液态 | D62: 0 | E62: =0.02 -> 0.02 | J62: 0.02 | K62: 0.02 | P62: 0.02
A63: 含铬废液 | B63: 264-009-12 | C63: 液态 | D63: 0 | E63: =0.93 -> 0.93 | J63: 0.93 | L63: 0.93 | P63: 0.93
A64: 发泡废料，废胶水 | B64: 900-014-13 | C64: 半固态 | D64: 0.5 | E64: =0.1+0.11 -> 0.21 | F64: =0.5+0.1+0.06+0.05 -> 0.71 | J64: 0 | P64: 0
A65: 发泡废料，废胶水 | B65: 900-014-13 | C65: 固态 | D65: 38.35 | E65: =6.75+15.32+15.48+13.92+15.74 -> 67.21 | F65: =8.47+6.75+15.32+15.48+13.92 -> 59.94 | J65: =D65+E65-F65-G65-H65-I65 -> 45.62 | K65: 45.62 | P65: 45.62
A66: 废树脂 | B66: 900-015-13 | C66: 固态 | D66: 0 | E66: =0.542 -> 0.542 | J66: 0.542 | K66: 0.542 | P66: 0.542
A67: 废螯合树脂 | B67: 900-016-13 | C67: 固态 | D67: 0 | E67: =7 -> 7 | F67: =7 -> 7 | J67: 0 | P67: 0
A68: 有机树脂废物 | B68: 900-016-13 | C68: 半固态 | D68: 4.296 | E68: =3.287 -> 3.287 | J68: 7.583 | K68: 7.583 | P68: =K68+L68+M68+N68+O68 -> 7.583
A69: PBL真空废液 | B69: 265-101-13 | C69: 液态 | D69: 17.52 | J69: 17.52 | K69: 17.52 | P69: 17.52
A70: 不合格有机树脂 | B70: 265-101-13 | C70: 半固态 | D70: 0 | E70: =1.9+1.923 -> 3.823 | F70: =0.36 -> 0.36 | J70: 3.463 | K70: 3.463 | P70: 3.463
A71: PBL真空废液 | B71: 265-101-13 | C71: 固态 | D71: 0 | E71: =0.58 -> 0.58 | J71: 0.58 | K71: 0.58 | P71: 0.58
A72: 釜残与滤渣 | B72: 265-103-13 | C72: 半固态 | D72: 0 | E72: =3.8 -> 3.8 | J72: 3.8 | K72: 3.8 | P72: 3.8
A73: 废树脂 | B73: 265-103-13 | C73: 固态 | D73: 2.74 | E73: =0.2 -> 0.2 | F73: =2.74 -> 2.74 | J73: 0.2 | K73: 0.2 | P73: 0.2
A74: 污水处理站污泥 | B74: 265-104-13 | C74: 固态 | D74: 0 | E74: =0.8 -> 0.8 | J74: 0.8 | K74: 0.8 | P74: 0.8
A75: 感光废物 | B75: 231-001-16 | C75: 液态 | D75: 0.6 | F75: =0.6 -> 0.6 | J75: 0 | P75: 0
A76: 废显影液 | B76: 900-019-16 | C76: 液态 | D76: 1.2 | E76: =0.01+0.44+1.04+0.05+0.074 -> 1.614 | F76: =0.6+0.6+0.45 -> 1.65 | J76: 1.164 | K76: 1.164 | P76: 1.164
A77: 废胶片 | B77: 900-019-16 | C77: 固态 | D77: 0 | E77: =0.001 -> 0.001 | J77: 0.001 | K77: 0.001 | P77: 0.001
A78: 含铬污泥 | B78: 336-060-17 | C78: 固态 | D78: 0.25 | F78: =0.25 -> 0.25 | J78: 0 | P78: 0
A79: 含铜污泥 | B79: 336-062-17 | C79: 固态 | D79: 8.32 | F79: =8.32 -> 8.32 | J79: 0 | P79: 0
A80: 电镀污泥 | B80: 336-052-17 | C80: 固态 | D80: 0.1 | E80: =29.7+30.96+28.74+27.76 -> 117.16 | F80: =0.1+15+14.7 -> 29.8 | J80: 87.46 | L80: 87.46 | P80: 87.46
A81: 镀镍废液 | B81: 336-055-17 | C81: 液态 | D81: 6.1932 | G81: =6.1932 -> 6.1932 | J81: 0 | P81: 0
A82: 含镍污泥 | B82: 336-055-17 | C82: 固态 | D82: 0 | E82: =5.28 -> 5.28 | J82: 5.28 | L82: 5.28 | P82: 5.28
A83: 电镀污泥 | B83: 336-063-17 | C83: 固态 | D83: 0 | E83: =0.04 -> 0.04 | J83: 0.04 | L83: 0.04 | P83: 0.04
A84: 磷化污泥 | B84: 336-064-17 | C84: 固态 | D84: 9.492 | E84: =12.42+3.35+8.33+0.71+28.44+8.38 -> 61.63 | F84: =5.415+0.2+3.877+12.42+3.35 -> 25.262 | J84: 45.86 | L84: 45.86 | P84: 45.86
A85: 金属表面处理污泥 | B85: 336-064-17 | C85: 半固态 | D85: 0 | E85: =0.88 -> 0.88 | F85: =0.88 -> 0.88 | J85: 0 | P85: 0
A86: 金属表面处理污泥 | B86: 336-064-17 | C86: 液态 | D86: 31.809 | E86: =3.69+0.8 -> 4.49 | F86: =3.48+0.43 -> 3.91 | G86: =1.379 -> 1.379 | J86: 31.01 | L86: 31.01 | P86: 31.01
A87: 污泥 | B87: 336-069-17 | C87: 半固态 | D87: 0 | E87: =0.18 -> 0.18 | J87: 0.18 | L87: 0.18 | P87: 0.18
A88: 污泥 | B88: 336-069-17 | C88: 固态 | D88: 0 | E88: =6.5 -> 6.5 | J88: 6.5 | L88: 6.5 | P88: 6.5
A89: 含铬污泥 | B89: 336-100-17 | C89: 固态 | D89: 0 | E89: =2.04+32.9755 -> 35.0155 | F89: =2.04 -> 2.04 | J89: 32.9755 | L89: 32.9755 | P89: 32.9755
A90: 清洁剂 | B90: 900-399-35 | C90: 液态 | D90: 0 | E90: =0.05 -> 0.05 | F90: =0.05 -> 0.05 | J90: 0 | P90: 0
A91: 含酚废水 | B91: 261-070-39 | C91: 液态 | D91: 204.18 | G91: =25.5+6.96 -> 32.46 | J91: 171.72 | N91: 171.72 | P91: 171.72
A92: 废活性炭 | B92: 261-071-39 | C92: 固态 | D92: 0.191 | F92: =0.191 -> 0.191 | J92: 0 | P92: 0
A93: 污泥 | B93: 261-084-45 | C93: 固态 | D93: 0 | E93: =21.559 -> 21.559 | J93: 21.559 | L93: 21.559 | P93: 21.559
A94: 含油废物 | B94: 900-041-49 | C94: 固态 | D94: 151.72353 | E94: =12.86+7.4415+33.66+13.5654+53.256+9.70688+33+6.16933+19.8+7.36988+33.469267+28.0725+77.1095+8.2955+37.854835+22.2145+21.9085 -> 425.753592 | F94: =50.88968+34.7152+3.9656+10.35905+9.635+11.5185+19.068+8.057+6.9+5.0449+9.4756+13.9916+58.01478+31.69528+4.79395+6.46733+19.7622+13.7965+12.541+16.0712+0.005+11.21+0.294 -> 358.27137 | H94: =16.405+12.269+1.16 -> 29.834 | J94: 189.371752 | K94: =175.839957-50 -> 125.839957 | L94: 13.531795 | O94: 50 | P94: 189.371752
A95: 实验室废液 | B95: 900-041-49 | C95: 液态 | D95: 0 | E95: =1.2+0.026+0.14+0.0178+0.3 -> 1.6838 | F95: =1.226 -> 1.226 | J95: 0.4578 | K95: 0.0178 | L95: 0.44 | P95: 0.4578
A96: 废酸碱袋 | B96: 900-042-49 | C96: 固态 | D96: 0.262 | E96: =0.04+0.712+0.513 -> 1.265 | F96: =0.262+0.04 -> 0.302 | J96: 1.225 | K96: 1.225 | P96: 1.225
A97: 污泥 | B97: 772-006-49 | C97: 固态 | D97: 0 | E97: =1.45+3.3+7.717 -> 12.467 | F97: =1.45 -> 1.45 | J97: 11.017 | L97: 11.017 | P97: 11.017
A98: 喷淋废液 | B98: 772-006-49 | C98: 液态 | D98: 0 | E98: =0.36+16.72 -> 17.08 | F98: =0.36 -> 0.36 | J98: 16.72 | L98: 16.72 | P98: 16.72
A99: 废活性炭 | B99: 900-039-49 | C99: 固态 | D99: 3.005 | E99: =8.29+0.82605+3.4+2.04+0.1+0.5778+2.22+4.15504+0.91+7.8622+0.5+2.6623+0.19764+18.76394+7.92+0.25 -> 60.67497 | F99: =0.03+0.73+0.03+0.12+7.53+0.065+1.51605+0.75+1.38+0.565+2.3438+0.1+5.5102+1.1639+0.3+2.49014-0.32 -> 24.30409 | J99: 39.37588 | L99: =39.37588-30 -> 9.37588 | O99: 30 | P99: =K99+L99+M99+N99+O99 -> 39.37588
A100: 废水污泥 | B100: 900-046-49 | C100: 固态 | D100: 0 | E100: =4.38+0.52+0.217+0.186 -> 5.303 | F100: =4.38+0.52 -> 4.9 | J100: 0.403 | L100: 0.403 | P100: 0.403
A101: 污泥 | B101: 900-046-49 | C101: 半固态 | D101: 0 | E101: =1.2 -> 1.2 | J101: 1.2 | L101: 1.2 | P101: 1.2
A102: 过期化学药品 | B102: 900-047-49 | C102: 固态 | D102: 5.95455 | E102: =0.156+0.13255+0.813+5.337+18.64+2.71125+0.26+0.6804+0.1+0.594+0.04529+4.279+0.1193 -> 33.86779 | F102: =0.0751+0.26695+4.2625+1.3+0.156+2.07255+4.0174+7.56+3.093+0.694+3.977+11.83125+0.0945 -> 39.40025 | J102: 0.42209 | K102: 0.12279 | L102: 0.2993 | P102: 0.42209
A103: 乙腈、异丙酮、废液 | B103: 900-047-49 | C103: 液态 | D103: 59.70018 | E103: =23.87326+12.75665+2.437+11.003+5.64685+2.72755+1.2+9.25305+5.3916+5.94087+13.17242+17.0355+19.58275+5.6861+30.343475+12.53185+11.26215 -> 189.844075 | F103: =1.2288+1.59025+3.25218+1.04525+5.14475+6.7446+0.74+4.52096+0.43+0.0835+4.9605-0.0945 -> 29.64629 | G103: =2.89025+1.6357+11.10735+3.225+12.26956+3.4798+4.2116+9.68585+6.14567+0.26 -> 54.91078 | J103: 164.987185 | K103: 0.078 | L103: 164.909185 | P103: 164.987185
A104: 危险化学品 | B104: 900-999-49 | C104: 固态 | D104: 0.87071 | E104: =0.4168+474.26 -> 474.6768 | F104: =0.0044+0.14631+0.4168+20+11.96+10+20.72+20 -> 83.24751 | J104: 392.3 | K104: 0.72 | L104: =391.58-200 -> 191.58 | O104: 200 | P104: 392.3
A105: 过期面膜原料、残液 | B105: 900-999-49 | C105: 液态 | D105: 0 | E105: =79.1 -> 79.1 | J105: 79.1 | L105: 79.1 | P105: 79.1
A106: 树脂 | B106: 261-151-50 | C106: 液态 | D106: 0 | E106: =26.14 -> 26.14 | J106: 26.14 | L106: 26.14 | P106: 26.14
A107: 小计： | D107: 4721.54271 | E107: =SUM(E4:E106) -> 2860.442412 | F107: =SUM(F4:F106) -> 1778.134175 | G107: =SUM(G4:G106) -> 446.95478 | H107: =SUM(H4:H106) -> 29.834 | I107: =SUM(I4:I106) -> 0 | J107: 5327.062167 | K107: =SUM(K4:K106) -> 1439.035857 | L107: 1620.55306 | M107: 0 | N107: 1947.47325 | O107: 320 | P107: 5327.062167
A108: 合计： | F108: =F107+G107+H107 -> 2254.922955
